Workbook

Sheet MSS
B1: Toni Verto | E1: 15.5.1987 Vähäkyrö
B2: YKKÖSPESIS | E2: Runkosarja | L2: Runkosarja TOP-10 | Q2: Jatkosarjat | X2: SUOMENSARJA | AA2: Runkosarja | AH2: Runkosarja TOP-10 | AM2: Jatkosarjat
B3: Vuosi | C3: Sija | D3: Seura | E3: OTT | F3: KUN | G3: LÖI | H3: TOI | I3: KL | J3: KL-% | L3: LÖI | M3: TOI | N3: L+T | O3: KL | Q3: OTT | R3: KUN | S3: LÖI | T3: TOI | U3: KL | V3: KL-% | X3: Vuosi | Y3: Sija | Z3: Seura | AA3: OTT | AB3: KUN | AC3: LÖI | AD3: TOI | AE3: KL | AF3: KL-% | AH3: LÖI | AI3: TOI | AJ3: L+T | AK3: KL | AM3: OTT | AN3: KUN | AO3: LÖI | AP3: TOI | AQ3: KL | AR3: KL-%
X4: 2006 | Y4: 4. | Z4: VäVi | AA4: 5 | AB4: 0 | AC4: 1 | AD4: 0 | AE4: 2 | AF4: 16.7 % | AG4: 12
X5: 2007 | Y5: 2. | Z5: VäVi | AA5: 6 | AB5: 0 | AC5: 0 | AD5: 0 | AE5: 5 | AF5: 27.8 % | AG5: 18 | AM5: 1 | AN5: 0 | AO5: 0 | AP5: 0 | AQ5: 1 | AR5: 20.0 % | AS5: 5
X7: 2011 | Y7: 3. | Z7: VäVi | AA7: 4 | AB7: 0 | AC7: 0 | AD7: 2 | AE7: 4 | AF7: 44.4 % | AG7: 9
X9: 2014 | Y9: 3. | Z9: VM | AA9: 11 | AB9: 0 | AC9: 3 | AD9: 0 | AE9: 12 | AF9: 41.4 % | AG9: 29
X10: 2015 | Y10: 2. | Z10: VM | AA10: 3 | AB10: 0 | AC10: 0 | AD10: 0 | AE10: 5 | AF10: 50.0 % | AG10: 10
X12: 2018 | Y12: 8. | Z12: YKV | AA12: 5 | AB12: 0 | AC12: 0 | AD12: 1 | AE12: 5 | AF12: 35.7 % | AG12: =PRODUCT(AE12/AF12) -> 14
X13: 2021 | Y13: 3. | Z13: Luja | AA13: 15 | AB13: 0 | AC13: 4 | AD13: 2 | AE13: 33 | AF13: 47.8 % | AG13: 69 | AM13: 2 | AN13: 0 | AO13: 1 | AP13: 0 | AQ13: 4 | AR13: 40.0 % | AS13: 10
X14: 2022 | Y14: 4. | Z14: Luja | AA14: 14 | AB14: 0 | AC14: 2 | AD14: 3 | AE14: 19 | AF14: 35.2 % | AG14: 54 | AM14: 2 | AN14: 0 | AO14: 1 | AP14: 0 | AQ14: 1 | AR14: 25.0 % | AS14: 4
X15: 2023 | Y15: 7. | Z15: Luja | AA15: 1 | AB15: 0 | AC15: 0 | AD15: 0 | AE15: 0 | AF15: 0.0 % | AG15: 3
B16: YHTEENSÄ | E16: =SUM(E4:E15) -> 0 | F16: =SUM(F4:F15) -> 0 | G16: =SUM(G4:G15) -> 0 | H16: =SUM(H4:H15) -> 0 | I16: =SUM(I4:I15) -> 0 | J16: 0.0 % | K16: =SUM(K4:K15) -> 0 | Q16: =SUM(Q4:Q15) -> 0 | R16: =SUM(R4:R15) -> 0 | S16: =SUM(S4:S15) -> 0 | T16: =SUM(T4:T15) -> 0 | U16: =SUM(U4:U15) -> 0 | V16: 0.0 % | W16: =SUM(W4:W15) -> 0 | X16: YHTEENSÄ | AA16: =SUM(AA4:AA15) -> 64 | AB16: =SUM(AB4:AB15) -> 0 | AC16: =SUM(AC4:AC15) -> 10 | AD16: =SUM(AD4:AD15) -> 8 | AE16: =SUM(AE4:AE15) -> 85 | AF16: =PRODUCT(AE16/AG16) -> 39.0 % | AG16: =SUM(AG4:AG15) -> 218.0016802 | AM16: =SUM(AM4:AM15) -> 5 | AN16: =SUM(AN4:AN15) -> 0 | AO16: =SUM(AO4:AO15) -> 2 | AP16: =SUM(AP4:AP15) -> 0 | AQ16: =SUM(AQ4:AQ15) -> 6 | AR16: =PRODUCT(AQ16/AS16) -> 31.6 % | AS16: =SUM(AS4:AS15) -> 19
B18: KAIKKI OTTELUT | E18: OTT | F18: KUN | G18: LÖI | H18: TOI | I18: KL | J18: KL-% | L18: ka/L | M18: ka/T | N18: ka/l+t | O18: ka/kl | R18: Seurat | T18: VäVi = Vähänkyrön Viesti (1938), kasvattajaseura
B19: SUPERPESIS | E19: 0 | F19: 0 | G19: 0 | H19: 0 | I19: 0 | J19: 0.0 % | L19: 0.00 | M19: 0.00 | N19: 0.00 | O19: 0.00 | T19: VM = Vaasan Maila (1933)
B20: YKKÖSPESIS | E20: =PRODUCT(E16+Q16) -> 0 | F20: =PRODUCT(F16+R16) -> 0 | G20: =PRODUCT(G16+S16) -> 0 | H20: =PRODUCT(H16+T16) -> 0 | I20: =PRODUCT(I16+U16) -> 0 | J20: 0.0 % | L20: 0.00 | M20: 0.00 | N20: 0.00 | O20: 0.00 | T20: YKV = Ylistaron Kilpa-Veljet (1945)
B21: SUOMENSARJA | E21: =PRODUCT(AA16+AM16) -> 69 | F21: =PRODUCT(AB16+AN16) -> 0 | G21: =PRODUCT(AC16+AO16) -> 12 | H21: =PRODUCT(AD16+AP16) -> 8 | I21: =PRODUCT(AE16+AQ16) -> 91 | J21: =PRODUCT(I21/K21) -> 38.4 % | K21: =PRODUCT(AG16+AS16) -> 237.0016802 | L21: =PRODUCT((F21+G21)/E21) -> 0.17 | M21: =PRODUCT(H21/E21) -> 0.12 | N21: =PRODUCT((F21+G21+H21)/E21) -> 0.29 | O21: =PRODUCT(I21/E21) -> 1.32 | T21: Luja = Laihian Luja (1996)
B22: YHTEENSÄ | E22: =SUM(E19:E21) -> 69 | F22: =SUM(F19:F21) -> 0 | G22: 12 | H22: 8 | I22: 91 | J22: =PRODUCT(I22/K22) -> 38.4 % | K22: =SUM(K19:K21) -> 237.0016802 | L22: =PRODUCT((F22+G22)/E22) -> 0.17 | M22: =PRODUCT(H22/E22) -> 0.12 | N22: =PRODUCT((F22+G22+H22)/E22) -> 0.29 | O22: =PRODUCT(I22/E22) -> 1.32
